bitfinex-derivatives/quotes_ETHF0:USTF0_20250329
["timestamp","ask_amount","ask_price","bid_price","bid_amount"]
[1743211683219,4.25936,1902.9,1902.6,1.05164]
[1743211683418,1.78441,1902.8,1902.6,3.81534]
[1743211683620,3.22481,1902.8,1902.7,1.3539]
[1743211684013,1.05169,1902.6,1902.5,3.357]
[1743211684321,6.43106,1902.7,1902.5,4.40871]
[1743211684523,1.4404,1902.6,1902.5,4.40871]
[1743211685422,2.49209,1902.6,1902.4,4.40776]
[1743211685620,0.7233,1902.5,1902.4,4.40776]
[1743211685821,2.103,1902.5,1902.4,4.40776]
[1743211686626,1.3797,1902.5,1902.4,4.40776]
[1743211691122,2.1793,1902.6,1902.5,1.05175]
[1743211691428,2.1786,1902.7,1902.6,1.05169]
[1743211693032,1.4474,1902.7,1902.6,1.05169]
[1743211693728,0.7021,1902.8,1902.7,1.05164]
[1743211693932,2.50649,1903.0,1902.8,1.05153]
[1743211694132,3.23929,1903.0,1902.8,1.05153]
[1743211694336,1.455,1902.9,1902.8,1.05153]
[1743211694930,2.50653,1902.9,1902.8,1.05153]
[1743211695233,2.50653,1902.9,1902.7,4.4076]
[1743211695427,1.4203,1902.8,1902.7,4.4076]
[1743211697340,1.4203,1902.8,1902.7,5.7422]
[1743211697932,0.7328,1903.0,1902.9,1.05153]
[1743211699329,2.0887,1903.0,1902.9,1.05153]
[1743211701534,2.0887,1903.0,1902.9,2.47873]
[1743211701832,1.3559,1903.0,1902.9,2.47873]
[1743211702031,0.00787215,1903.3,1902.9,7.26381]
[1743211702236,0.00787215,1903.3,1903.2,1.05136]
[1743211702524,1.37387215,1903.3,1903.2,1.05136]
[1743211703640,1.37387215,1903.3,1903.2,1.71776]
[1743211704534,1.37387215,1903.3,1903.2,1.05136]
[1743211705439,2.42518215,1903.3,1903.2,2.47766]
[1743211705829,1.37387215,1903.3,1903.2,2.47766]
[1743211708342,2.42518215,1903.3,1903.2,2.47766]
[1743211708534,1.37387215,1903.3,1903.1,3.356]
[1743211708842,1.3943,1903.2,1903.1,4.4074]
[1743211712339,2.44566,1903.2,1903.1,4.4074]
[1743211712546,1.3943,1903.2,1903.1,4.4074]
[1743211713640,1.05152,1903.0,1902.9,3.355]
[1743211713946,5.68266,1903.1,1902.9,4.40653]
[1743211714145,1.3323,1903.0,1902.9,4.40653]
[1743211715352,1.3323,1903.0,1902.9,5.78333]
[1743211717143,1.4234,1903.1,1903.0,1.05147]
[1743211717349,2.0558,1903.1,1903.0,2.49947]
[1743211718037,1.3455,1903.1,1903.0,2.49947]
[1743211718235,0.00787215,1903.3,1903.0,1.448]
[1743211718446,0.00787215,1903.3,1902.9,4.7318]
[1743211718447,1.35337215,1903.3,1903.2,1.05136]
[1743211719856,0.00787215,1903.3,1903.2,1.05136]
[1743211720044,0.00787215,1903.3,1903.2,2.47846]
[1743211721146,1.45567215,1903.3,1903.2,2.47846]
[1743211721950,1.45567215,1903.3,1903.2,5.83346]
[1743211724748,0.00787215,1903.3,1903.2,5.83346]
[1743211726449,0.00787215,1903.3,1903.2,9.04126]
[1743211726644,4.5593,1903.7,1903.6,1.05114]
[1743211726951,3.2078,1903.7,1903.6,1.05114]
[1743211727339,3.2078,1903.7,1903.6,2.41004]
[1743211728144,3.2078,1903.7,1903.6,3.08084]
[1743211730749,3.2078,1903.7,1903.6,2.41004]
[1743211733355,2.46552215,1903.8,1903.6,2.41004]
[1743211733556,3.2078,1903.7,1903.6,2.41004]
[1743211735557,1.41447215,1903.8,1903.7,1.05109]
[1743211735748,1.41447215,1903.8,1903.7,2.50709]
[1743211741764,1.41447215,1903.8,1903.7,1.05109]
[1743211746763,2.76357215,1903.8,1903.7,1.05109]
[1743211752066,5.97137215,1903.8,1903.7,1.05109]
[1743211752465,2.76357215,1903.8,1903.7,1.05109]
[1743211753962,5.97137215,1903.8,1903.7,1.05109]
[1743211754464,2.76357215,1903.8,1903.7,1.05109]
[1743211756579,3.81460215,1903.8,1903.7,1.05109]
[1743211756883,5.97137215,1903.8,1903.7,1.05109]
[1743211757378,7.02240215,1903.8,1903.7,1.05109]
[1743211757579,5.97137215,1903.8,1903.7,1.05109]
[1743211757775,1.05114,1903.6,1903.5,0.00787215]
[1743211758077,4.25894,1903.6,1903.5,0.00787215]
[1743211770990,5.71594,1903.6,1903.5,0.00787215]
[1743211776296,1.05131,1903.3,1903.2,1.4111]
[1743211776482,4.25911,1903.3,1903.2,2.1134]
[1743211780191,3.2078,1903.3,1902.6,9.2058]
[1743211780386,3.2078,1903.0,1902.8,1.71588]
[1743211780591,4.25931,1903.0,1902.8,1.71588]
[1743211781389,1.05153,1902.9,1902.8,1.71588]
[1743211781590,4.25931,1903.0,1902.8,1.71588]
[1743211782596,1.05153,1902.9,1902.8,1.71588]
[1743211782902,1.05153,1902.9,1902.8,4.0183]
[1743211783093,4.25931,1903.0,1902.8,5.06988]
[1743211783290,3.2078,1903.0,1902.8,5.06988]
[1743211783594,4.25932,1903.0,1902.8,5.06988]
[1743211783795,1.05153,1902.9,1902.8,5.06988]
[1743211784193,3.2078,1903.0,1902.9,1.05153]
[1743211784388,3.2078,1903.2,1903.1,1.05142]
[1743211784589,1.05136,1903.2,1902.8,4.0183]
[1743211785198,1.05136,1903.2,1903.1,1.05142]
[1743211785987,1.05136,1903.2,1903.1,3.18332]
[1743211786200,1.05136,1903.2,1903.1,2.1319]
[1743211786698,1.05136,1903.2,1903.1,5.4859]
[1743211787199,4.25916,1903.2,1903.1,5.4859]
[1743211791197,4.97826,1903.2,1903.1,2.1319]
[1743211792187,4.25916,1903.2,1903.1,2.1319]
[1743211794988,1.05157,1902.9,1902.8,3.354]
[1743211795193,2.7538,1903.1,1902.8,4.8033]
[1743211795394,1.05153,1902.9,1902.8,4.8033]
[1743211796099,1.05153,1902.9,1902.8,5.85488]
[1743211796300,2.4709,1903.0,1902.8,5.85488]
[1743211796501,2.4709,1903.0,1902.9,1.4493]
[1743211801602,1.4194,1903.0,1902.9,2.50083]
[1743211801806,3.2078,1903.1,1903.0,1.05147]
[1743211802108,3.2078,1903.1,1903.0,3.82097]
[1743211802297,2.1164,1903.5,1903.4,1.05125]
[1743211802497,3.2078,1903.6,1903.5,1.0512]
[1743211802795,0.00787215,1903.8,1903.7,1.05109]
[1743211802991,0.00787215,1903.8,1903.7,4.40509]
[1743211803194,3.2078,1905.1,1903.8,5.998]
[1743211803392,3.2078,1904.8,1904.3,3.2078]
[1743211803593,4.6535,1905.0,1904.4,6.1309]
[1743211803897,3.2078,1905.7,1904.7,3.2078]
[1743211804101,1.3591,1905.8,1905.7,1.04998]
[1743211804306,3.2078,1905.9,1905.7,4.42596]
[1743211804498,32.11316865,1906.6,1906.4,1.04956]
[1743211804810,32.11316865,1906.6,1905.9,3.71458073]
[1743211805005,3.2078,1906.0,1905.8,1.3924]
[1743211805198,1.04991,1905.9,1905.4,0.6702]
[1743211805500,3.2078,1906.0,1905.5,1.3924]
[1743211805699,0.00787215,1905.8,1905.5,1.40027215]
[1743211805896,9.25374577,1907.5,1905.5,5.1131053]
[1743211806102,3.2078,1906.6,1905.7,3.2078]
[1743211806298,3.2078,1906.9,1906.1,3.2078]
[1743211806496,3.2078,1906.9,1906.4,3.2078]
[1743211806798,3.2078,1906.9,1906.2,12.758]
[1743211806799,3.2078,1907.3,1906.6,3.2078]
[1743211806996,4.5669,1907.6,1907.1,1.04921]
[1743211807196,3.2078,1907.8,1907.3,3.2078]
[1743211807405,3.2078,1907.8,1907.2,1.3974]
[1743211807406,3.2078,1907.4,1907.2,1.3974]
[1743211807599,0.00787215,1907.5,1907.3,3.448]
[1743211807799,0.00787215,1907.5,1907.4,1.3974]
[1743211808003,3.2078,1908.1,1907.4,3.8974]
[1743211808195,3.2078,1908.3,1907.6,4.25673]
[1743211808394,4.6389,1908.5,1907.7,4.8624]
[1743211808603,3.2078,1908.7,1907.8,3.2078]
[1743211808804,3.2078,1909.1,1908.3,3.2078]
[1743211808995,48.53,1910.3,1908.3,3.2078]
[1743211808996,4.6389,1909.6,1908.7,3.2078]
[1743211809197,3.2078,1909.6,1909.1,3.2078]
[1743211809404,1.04792,1909.5,1909.2,5.4224]
[1743211809705,3.2078,1909.8,1909.3,4.54897]
[1743211810011,0.00787215,1909.5,1909.3,3.501]
[1743211810209,0.00787215,1909.5,1909.4,1.44687215]
[1743211810505,0.00787215,1909.5,1909.4,4.95087215]
[1743211811304,3.2078,1910.3,1909.4,14.35092773]
[1743211811604,3.2078,1910.3,1910.2,1.04751]
[1743211811803,0.7102,1911.3,1910.5,1.04731]
[1743211811804,3.2078,1910.7,1910.5,1.04731]
[1743211812106,3.2078,1910.7,1910.6,3.573]
[1743211812306,3.2078,1910.7,1910.3,1.439]
[1743211812501,3.2078,1910.4,1909.6,3.2078]
[1743211812705,1.3334,1910.6,1909.7,3.594]
[1743211813013,1.04784,1909.6,1909.5,3.596]
[1743211813203,3.2078,1909.6,1909.1,1.439]
[1743211813403,2.61899,1910.1,1909.1,1.439]
[1743211813404,3.2078,1909.3,1909.1,5.037]
[1743211813606,3.2078,1909.3,1909.1,1.439]
[1743211813805,0.00785094,1909.4,1909.1,1.439]
[1743211814007,0.00785094,1909.4,1909.2,3.602]
[1743211814213,4.25548,1909.9,1909.3,1.3767]
[1743211814409,1.04743,1910.4,1909.4,3.2078]
[1743211814714,3.2078,1910.0,1909.6,3.2078]
[1743211814915,3.2078,1910.0,1909.7,3.618]
[1743211815110,3.2078,1909.8,1909.0,3.2078]
[1743211815412,3.2078,1909.8,1908.9,1.3767]
[1743211815413,3.2078,1909.4,1908.9,1.3767]
[1743211815611,1.04825,1908.9,1908.7,0.68795175]
[1743211815810,1.04828,1908.8,1908.7,0.68795175]
[1743211816013,1.04833,1908.7,1908.6,0.00785094]
[1743211816311,1.04861,1908.2,1908.1,3.637]
[1743211816511,1.04872,1908.0,1907.9,1.3444]
[1743211816713,1.04872,1908.0,1907.9,4.9804]
[1743211817109,1.04891,1907.7,1907.4,3.2078]
[1743211817311,3.2078,1907.9,1907.5,3.637]
[1743211817505,3.2078,1907.7,1907.5,4.9814]
[1743211817714,4.25673,1907.7,1907.5,1.3444]
[1743211817913,4.25673,1907.7,1907.6,3.637]
[1743211818108,1.04894,1907.6,1907.5,1.3444]
[1743211818314,3.2078,1907.7,1907.4,0.00785094]
[1743211818315,1.04899,1907.5,1907.4,0.00785094]
[1743211818505,4.25679,1907.5,1907.4,0.00785094]
[1743211822328,4.25669,1907.7,1907.4,0.00785094]
[1743211822518,3.2078,1907.7,1907.4,2.45319094]
[1743211822820,4.25668,1907.7,1907.4,1.40415094]
[1743211823727,3.2078,1907.7,1907.4,1.40415094]
[1743211823918,1.35395094,1907.9,1907.4,1.40415094]
[1743211823919,5.61055094,1907.9,1907.5,1.04895]
[1743211824119,4.56175094,1907.9,1907.6,5.0303]
[1743211824417,1.04885,1907.8,1907.6,5.0303]
[1743211825227,1.04888,1907.7,1907.6,3.634]
[1743211825427,1.04897,1907.6,1907.4,0.00785094]
[1743211825625,1.04897,1907.6,1907.5,3.631]
[1743211826420,1.04891,1907.7,1907.5,3.631]
[1743211827019,1.04894,1907.6,1907.5,3.631]
[1743211827421,1.4148,1907.8,1907.5,3.631]
[1743211827422,1.04892,1907.7,1907.5,3.631]
[1743211827621,1.04894,1907.6,1907.5,3.631]
[1743211828428,1.4148,1907.8,1907.5,3.631]
[1743211828629,1.0489,1907.7,1907.5,3.631]
[1743211828930,1.04888,1907.7,1907.5,4.67999]
[1743211829131,1.04888,1907.7,1907.5,6.10289]
[1743211829920,0.00785094,1907.9,1907.8,1.04883]
[1743211830228,1.05662094,1907.9,1907.8,3.624]
[1743211831434,2.38832094,1907.9,1907.8,3.624]
[1743211832328,2.38832094,1907.9,1907.8,4.29823942]
[1743211833031,2.38832094,1907.9,1907.8,5.40429469]
[1743211835123,3.2078,1908.2,1907.8,9.1112638]
[1743211835329,1.04877,1907.9,1907.8,2.2794638]
[1743211835529,1.04875,1908.0,1907.8,5.41429469]
[1743211835734,1.04875,1908.0,1907.9,1.78029469]
[1743211836138,1.04875,1908.0,1907.9,2.28336991]
[1743211836340,1.29390868,1908.1,1907.9,1.78029469]
[1743211836636,1.04874,1908.0,1907.9,1.78029469]
[1743211837039,0.00785094,1908.1,1908.0,1.04872]
[1743211837233,1.05651094,1908.1,1908.0,0.50307626]
[1743211837632,9.62727,1908.9,1908.7,1.04832]
[1743211837633,1.77226,1908.9,1908.7,1.04832]
[1743211837833,1.04835,1908.7,1908.5,3.674]
[1743211838033,3.2078,1908.8,1908.5,3.674]
[1743211838237,0.724,1908.9,1908.6,1.55144422]
[1743211838440,1.77225,1908.9,1908.6,2.82866469]
[1743211838638,1.77225,1908.9,1908.7,1.04832]
[1743211838639,4.98005,1908.9,1908.7,1.04832]
[1743211838934,4.26124862,1908.9,1908.8,1.78029469]
[1743211839139,0.00519862,1908.9,1908.8,7.00162022]
[1743211839332,1.77188,1909.2,1908.8,5.95334022]
[1743211839540,3.2078,1909.3,1909.2,1.04806]
[1743211839839,3.2078,1909.3,1909.2,7.0023259]
[1743211840033,3.2078,1909.8,1909.2,5.9542659]
[1743211840231,1.04775,1909.8,1909.3,5.03803784]
[1743211840431,4.6134,1910.0,1909.6,1.04783]
[1743211840432,1.0477,1909.9,1909.6,1.04783]
[1743211840631,1.4696,1909.8,1909.5,3.675]
[1743211840828,1.04784,1909.6,1909.5,3.675]
[1743211841038,1.04782,1909.7,1909.5,3.68285094]
[1743211841237,1.4696,1909.6,1909.5,3.68285094]
[1743211841833,2.51744,1909.6,1909.5,5.47010178]
[1743211842029,5.72524,1909.6,1909.5,1.79510178]
[1743211842236,1.048,1909.3,1909.2,3.672]
[1743211842435,1.048,1909.3,1909.2,4.1755743]
[1743211843037,1.4696,1909.6,1909.2,4.1755743]
[1743211843233,1.4696,1909.6,1909.3,0.5035743]
[1743211843438,1.47745094,1909.6,1909.4,1.55147671]
[1743211843647,1.47745094,1909.6,1909.5,0.50345366]
[1743211843838,2.52529094,1909.6,1909.5,0.50345366]
[1743211844043,1.47745094,1909.6,1909.5,0.50345366]
[1743211844345,1.47745094,1909.6,1909.5,5.22834366]
[1743211844941,0.00785094,1909.6,1909.5,5.22834366]
[1743211845234,3.677,1910.2,1909.5,5.22834366]
[1743211845235,4.5995,1910.0,1909.5,9.54401213]
[1743211845437,4.5995,1910.0,1909.7,1.04776]
[1743211845635,4.5995,1910.0,1909.8,4.17845366]
[1743211845841,4.5995,1910.0,1909.8,3.675]
[1743211846031,1.04767,1909.9,1909.8,3.675]
[1743211846232,1.04767,1909.9,1909.5,4.5582]
[1743211846233,1.0478,1909.7,1909.5,4.5582]
[1743211846442,1.0478,1909.7,1909.6,4.17992805]
[1743211846847,1.0478,1909.7,1909.6,3.677]
[1743211847032,1.3917,1909.9,1909.6,4.17995154]
[1743211847237,1.3917,1909.9,1909.8,1.04773]
[1743211848748,1.3917,1909.9,1909.8,1.54988699]
[1743211849044,3.2078,1910.0,1909.8,0.50215699]
[1743211849342,1.3491,1910.3,1910.2,1.04751]
[1743211849745,2.39655,1910.3,1910.2,0.50164817]
[1743211850041,1.3491,1910.3,1910.1,4.26317094]
[1743211850245,1.04751,1910.2,1910.1,3.21565094]
[1743211850546,1.04751,1910.2,1910.1,0.00785094]
[1743211850845,4.25531,1910.2,1910.1,0.00785094]
[1743211851448,5.7078,1910.2,1909.6,4.72381]
[1743211851747,1.04764,1910.0,1909.7,0.50168422]
[1743211851947,1.3378,1909.9,1909.8,0.50168422]
[1743211852138,2.38547,1909.9,1909.8,0.50168422]
[1743211852441,2.38549,1909.9,1909.7,1.04776]
[1743211852634,3.676,1910.5,1909.8,0.50162554]
[1743211852635,0.00785094,1910.0,1909.8,0.50162554]
[1743211852947,0.00785094,1910.0,1909.9,5.23129554]
[1743211853742,0.00785094,1910.0,1909.9,5.23110928]
[1743211853948,1.05547094,1910.0,1909.9,4.18343928]
[1743211854159,0.00785094,1910.0,1909.9,3.683]
[1743211854551,2.43427094,1910.0,1909.9,3.683]
[1743211856044,2.43427094,1910.0,1909.7,5.70009094]
[1743211856045,1.04769,1909.9,1909.8,3.677]
[1743211856249,2.44119,1909.9,1909.8,4.17871298]
[1743211856949,1.04773,1909.8,1909.7,0.00785094]
[1743211857142,2.44123,1909.8,1909.7,0.00785094]
[1743211857341,1.048,1909.3,1909.2,0.80248723]
[1743211857542,1.048,1909.3,1909.2,0.50227497]
[1743211858746,7.22098,1909.6,1909.1,3.2078]
[1743211858747,1.04806,1909.2,1909.1,0.00785094]
[1743211858954,5.60996,1909.2,1909.1,0.00785094]
[1743211859147,5.60996,1909.2,1908.8,3.2078]
[1743211859148,1.04822,1908.9,1908.8,3.2078]
[1743211859444,7.18216,1909.2,1908.5,5.05000668]
[1743211859445,3.2078,1909.0,1908.5,5.05000668]
[1743211859646,1.04839,1908.6,1908.5,8.2347]
[1743211859844,1.04839,1908.6,1908.5,5.53033241]
[1743211860239,0.00785094,1908.7,1908.5,9.78655241]
[1743211860439,0.00785094,1908.7,1908.6,1.55197045]
[1743211860649,1.3541,1909.1,1908.9,1.04822]
[1743211860951,3.2078,1909.2,1909.0,1.3389]
[1743211861151,1.04806,1909.2,1909.0,1.3389]
[1743211861448,1.04809,1909.2,1909.0,1.3389]
[1743211862246,1.05589094,1909.3,1909.0,6.07605]
[1743211862455,1.05586094,1909.3,1909.0,6.07603]
[1743211862752,1.05586094,1909.3,1909.1,1.0481]
[1743211862753,0.00785094,1909.3,1909.1,1.0481]
[1743211862948,0.00785094,1909.3,1909.2,1.04806]
[1743211863250,3.2078,1909.9,1909.2,3.71173107]
[1743211863454,4.5975,1909.9,1909.3,6.65291107]
[1743211863639,3.2078,1909.7,1909.3,6.14898]
[1743211863842,1.3897,1909.6,1909.3,6.14898]
[1743211864047,2.43756,1909.6,1909.4,1.411]
[1743211864250,1.3897,1909.6,1909.5,1.04789]
[1743211864452,2.43756,1909.6,1909.4,1.411]
[1743211864655,0.00785094,1909.7,1909.6,1.04784]
[1743211864951,1.05563094,1909.7,1909.6,3.687]
[1743211865154,1.05563094,1909.7,1909.6,5.0369]
[1743211866050,0.00785094,1909.7,1909.3,0.00785094]
[1743211866354,1.04786,1909.6,1909.4,7.39968195]
[1743211866548,1.04786,1909.6,1909.5,1.85578195]
[1743211867350,1.04786,1909.6,1909.5,5.54278195]
[1743211867543,1.05567094,1909.7,1909.5,5.54278195]
[1743211867748,1.05567094,1909.7,1909.6,0.50588195]
[1743211869649,1.04789,1909.5,1909.4,4.48853998]
[1743211869955,1.04789,1909.5,1909.4,4.18427681]
[1743211870148,1.04789,1909.5,1909.4,0.50727681]
[1743211873147,2.43159,1909.5,1909.4,0.50727681]
[1743211874755,1.04795,1909.4,1909.3,1.39795094]
[1743211875054,2.43105,1909.4,1909.3,1.90502172]
[1743211875755,1.3831,1909.4,1909.3,1.90502172]
[1743211875956,2.43105,1909.4,1909.3,2.71621621]
[1743211876459,2.43105,1909.4,1909.3,1.90502172]
[1743211876663,2.43105,1909.4,1909.3,1.90496338]
[1743211877150,2.43105,1909.4,1909.3,0.51486338]
[1743211877750,5.63885,1909.4,1909.3,0.51486338]
[1743211877944,5.63885,1909.4,1909.3,0.00785094]
[1743211878551,2.62004,1909.3,1908.7,7.0463]
[1743211878862,1.04823,1908.9,1908.8,1.31878818]
[1743211879057,4.6662,1909.2,1908.8,0.50722622]
[1743211879256,1.04822,1909.0,1908.9,0.50722622]
[1743211879858,1.04822,1909.0,1908.8,0.00785094]
[1743211880259,1.04822,1909.0,1908.9,0.50733179]
[1743211880464,1.04822,1909.0,1908.9,0.50752758]
[1743211881363,1.04822,1908.9,1908.8,0.00785094]
[1743211881655,2.42172,1908.9,1908.8,0.00785094]
[1743211891460,2.42172,1908.9,1908.4,3.2078]
[1743211891461,1.04844,1908.5,1908.4,3.2078]
[1743211892261,1.04844,1908.5,1908.1,5.0714]
[1743211892262,1.04861,1908.2,1908.1,5.0714]
[1743211892660,1.04861,1908.2,1908.1,1.4444]
[1743211893766,1.05626094,1908.6,1908.1,5.0724]
[1743211894065,3.2078,1909.2,1908.5,1.04844]
[1743211894270,3.2078,1909.2,1908.6,4.86568151]
[1743211894566,1.04825,1908.9,1908.6,1.76086]
[1743211894761,1.3651,1908.8,1908.7,1.3341]
[1743211894963,2.41338,1908.8,1908.7,1.3341]
[1743211895666,1.3651,1908.8,1908.7,1.3341]
[1743211895857,2.41338,1908.8,1908.7,1.3341]
[1743211896668,1.3651,1908.8,1908.7,1.3341]
[1743211897168,2.41338,1908.8,1908.7,1.3341]
[1743211897670,1.3651,1908.8,1908.7,1.3341]
[1743211898063,0.00785094,1908.9,1908.7,1.3341]
[1743211898257,0.00785094,1908.9,1908.8,1.55444586]
[1743211898563,0.00785094,1908.9,1908.8,1.55463986]
[1743211899159,0.00785094,1908.9,1908.7,6.02539]
[1743211899871,0.00785094,1908.9,1908.8,1.04828]
[1743211900469,1.05609094,1908.9,1908.7,4.9721]
[1743211901069,0.00785094,1908.9,1908.7,6.02042]
[1743211901468,0.00785094,1908.9,1908.8,1.04828]
[1743211901670,0.00785094,1908.9,1908.8,1.55510673]
[1743211902472,3.2078,1909.4,1909.3,1.048]
[1743211902664,3.9245,1910.0,1909.5,1.04787]
[1743211902865,1.4634,1909.8,1909.4,1.3361]
[1743211903165,1.04779,1909.7,1909.4,3.08049]
[1743211903370,1.4634,1909.8,1909.4,2.0326]
[1743211903371,1.04785,1909.6,1909.4,2.0326]
[1743211903559,1.4634,1909.5,1909.4,3.08055]
[1743211903758,1.05567094,1909.7,1909.4,3.58701363]
[1743211903960,1.05567094,1909.7,1909.5,1.04789]
[1743211903961,1.47125094,1909.7,1909.5,1.04789]
[1743211904170,0.00785094,1909.7,1909.6,1.3361]
[1743211904472,2.51903094,1909.7,1909.6,1.3361]
[1743211905068,1.47125094,1909.7,1909.6,1.3361]
[1743211905461,2.51903094,1909.7,1909.6,1.3361]
[1743211905666,1.47125094,1909.7,1909.6,2.38394]
[1743211905867,1.47125094,1909.7,1909.6,1.3361]
[1743211908370,1.47125094,1909.7,1909.6,2.38394]
[1743211908569,0.00785094,1909.7,1909.6,2.38394]
[1743211909770,0.00785094,1909.7,1909.6,1.3361]
[1743211910372,1.05563094,1909.7,1909.6,1.3361]
[1743211911683,0.00785094,1909.7,1909.6,1.3361]
[1743211912083,1.05563094,1909.7,1909.6,1.3361]
[1743211912385,0.00785094,1909.7,1909.6,1.3361]
[1743211913282,1.05563094,1909.7,1909.6,1.3361]
[1743211913682,1.04795,1909.4,1909.3,0.00785094]
[1743211914375,2.41595,1909.4,1909.3,0.00785094]
[1743211916087,1.368,1909.4,1908.8,14.2135]
[1743211916285,4.25584,1909.3,1909.0,1.04813]
[1743211916482,1.4404,1909.2,1909.1,1.463]
[1743211916881,2.48846,1909.2,1909.1,1.463]
[1743211917083,1.04814,1909.1,1908.8,8.2155]
[1743211917389,2.48857,1909.0,1908.9,1.463]
[1743211917982,1.4404,1909.0,1908.9,2.51122]
[1743211918384,3.2078,1909.3,1908.9,1.463]
[1743211918583,3.2078,1909.3,1909.1,1.0481]
[1743211918783,3.2078,1909.3,1909.2,1.463]
[1743211919182,4.2558,1909.3,1909.2,1.463]
[1743211920389,1.048,1909.3,1909.2,1.463]
[1743211921396,3.2078,1909.3,1908.9,0.50574871]
[1743211921591,1.04822,1908.9,1908.8,4.61335094]
[1743211922688,1.04821,1909.0,1908.8,4.61335094]
[1743211922885,2.42942,1908.9,1908.8,4.61335094]
[1743211923189,2.42942,1908.9,1908.8,0.00785094]
[1743211923395,5.63722,1908.9,1908.8,0.00785094]
[1743211923890,9.70961,1908.9,1908.3,0.7314]
[1743211924105,1.04852,1908.4,1908.2,2.21628085]
[1743211924297,2.42975,1908.3,1908.2,1.4066]
[1743211924487,2.42975,1908.3,1908.2,1.9131889]
[1743211925391,2.42975,1908.3,1908.2,1.4066]
[1743211927596,1.3812,1908.3,1908.2,1.4066]
[1743211927788,2.42975,1908.3,1908.2,1.4066]
[1743211928090,0.00785094,1908.4,1908.2,1.4066]
[1743211928296,0.00785094,1908.4,1908.3,1.04855]
[1743211928796,1.05636094,1908.4,1908.2,2.96105508]
[1743211928989,2.51176094,1908.4,1908.2,2.96105508]
[1743211929200,2.51176094,1908.4,1908.2,2.45517]
[1743211931498,1.46325094,1908.4,1908.3,1.04855]
[1743211932601,0.00785094,1908.4,1908.3,1.04855]
[1743211934099,1.0482,1909.0,1908.8,1.04823]
[1743211934302,2.4722,1909.0,1908.9,1.379]
[1743211936895,0.00785094,1909.1,1909.0,1.04817]
[1743211937301,0.00785094,1909.1,1909.0,2.43917]
[1743211938093,0.00785094,1909.1,1909.0,5.64697]
[1743211938398,1.04793,1909.5,1909.2,1.04801]
[1743211938601,1.3442,1909.4,1909.3,1.4052]
[1743211939187,2.39215,1909.4,1909.3,1.4052]
[1743211939392,1.3442,1909.4,1909.3,1.4052]
[1743211939901,2.39215,1909.4,1909.3,1.4052]
[1743211940992,1.3442,1909.4,1909.3,1.4052]
[1743211941499,2.39215,1909.4,1909.3,1.4052]
[1743211941892,1.3442,1909.4,1909.3,1.4052]
[1743211942401,2.39215,1909.4,1909.3,1.4052]
[1743211944490,2.39215,1909.4,1909.2,0.00785094]
[1743211945089,4.2558,1909.3,1909.2,0.00785094]
[1743211945305,5.671,1909.3,1909.2,0.00785094]
[1743211946701,2.4632,1909.3,1909.2,0.00785094]
[1743211950309,2.4632,1909.3,1908.6,10.0158091]
[1743211950310,7.24308,1909.3,1908.6,10.0158091]
[1743211950507,1.04828,1908.8,1908.7,0.50670909]
[1743211950808,1.04847,1908.5,1908.3,3.8993]
[1743211951107,1.04847,1908.5,1908.3,5.3393]
[1743211951305,1.4068,1908.4,1908.3,6.38785]
[1743211951501,1.04835,1908.7,1908.4,1.04846]
[1743211951717,0.00785094,1908.5,1908.4,1.04846]
[1743211951918,0.00785094,1908.5,1908.4,1.55545074]
[1743211952131,4.25596,1909.1,1908.4,6.43930243]
[1743211952412,5.66276,1909.1,1908.8,1.04825]
[1743211952720,1.04818,1909.0,1908.8,1.04825]
[1743211952922,2.51578,1909.0,1908.8,1.04825]
[1743211953626,1.4676,1909.0,1908.8,1.04825]
[1743211953821,1.4676,1909.0,1908.9,1.04822]
[1743211954129,3.21565094,1909.1,1908.7,0.5066978]
[1743211954315,0.00785094,1909.1,1908.8,4.8034978]
[1743211954522,0.00785094,1909.1,1909.0,1.04817]
[1743211954830,0.00785094,1909.1,1909.0,1.55464561]
[1743211955622,0.00785094,1909.1,1909.0,1.04817]
[1743211956016,0.00785094,1909.1,1909.0,1.55448509]
[1743211956216,0.00785094,1909.1,1909.0,1.04817]
[1743211956421,0.00785094,1909.1,1909.0,1.55460698]
[1743211957220,1.05596094,1909.1,1908.9,1.04819]
[1743211957418,0.00785094,1909.1,1909.0,1.04817]
[1743211957614,0.00785094,1909.1,1909.0,1.55474049]
[1743211958022,0.00785094,1909.1,1909.0,4.76254049]
[1743211959929,0.00785094,1909.1,1909.0,8.32054049]
[1743211960315,1.35045094,1909.1,1909.0,8.32054049]
[1743211961424,1.35045094,1909.1,1909.0,8.32113081]
[1743211962529,1.35045094,1909.1,1909.0,8.32138733]
[1743211962727,1.35045094,1909.1,1909.0,4.76338733]
[1743211962929,1.35045094,1909.1,1909.0,1.55558733]
[1743211963326,1.35045094,1909.1,1909.0,1.04817]
[1743211963529,1.35045094,1909.1,1909.0,1.55586997]
[1743211965327,1.35045094,1909.1,1909.0,1.55596256]
[1743211966533,1.35045094,1909.1,1909.0,2.36852939]
[1743211967419,1.35045094,1909.1,1909.0,2.36849811]
[1743211967826,1.35045094,1909.1,1909.0,1.5559885]
[1743211968832,1.35045094,1909.1,1909.0,2.36850428]
[1743211969338,1.35045094,1909.1,1909.0,5.57630428]
[1743211969339,0.00785094,1909.1,1909.0,5.57630428]
[1743211971029,0.00785094,1909.1,1909.0,6.25470428]
[1743211971231,0.00785094,1909.1,1909.0,6.25447188]
[1743211973227,0.00785094,1909.1,1909.0,6.2546952]
[1743211975036,3.2078,1909.9,1909.6,1.04782]
[1743211975232,2.38294,1909.6,1909.5,1.04789]
[1743211975438,3.2078,1909.9,1909.5,0.50766373]
[1743211975635,1.3351,1909.8,1909.7,1.04776]
[1743211975831,2.38283,1909.8,1909.7,2.94202373]